bitfinex/quotes_BTCUSD_20240730
["timestamp","ask_amount","ask_price","bid_price","bid_amount"]
[1722377968357,0.00083,66376.0,66375.0,2.16579204]
[1722377968358,0.00183,66376.0,66375.0,2.16579204]
[1722377969301,0.00183,66376.0,66375.0,2.15179204]
[1722377969740,0.00083,66376.0,66375.0,2.15179204]
[1722377969961,0.00083,66376.0,66375.0,1.85047404]
[1722377970416,0.00083,66376.0,66375.0,1.83647404]
[1722377970571,0.00083,66376.0,66375.0,1.85047404]
[1722377970892,0.00083,66376.0,66375.0,1.86447404]
[1722377971090,0.00083,66376.0,66375.0,1.85047404]
[1722377971297,0.00083,66376.0,66375.0,1.86447404]
[1722377971518,0.00083,66376.0,66375.0,1.87847404]
[1722377971721,0.00083,66376.0,66375.0,1.85047404]
[1722377972764,0.00083,66376.0,66375.0,1.84847404]
[1722377972984,0.00083,66376.0,66375.0,1.85047404]
[1722377973607,0.00083,66376.0,66375.0,1.86447404]
[1722377976083,0.00083,66376.0,66375.0,2.16579204]
[1722377977230,0.00083,66376.0,66375.0,2.28596726]
[1722377979532,0.00083,66376.0,66375.0,2.29996726]
[1722377979947,0.00083,66376.0,66375.0,2.27196726]
[1722377980206,0.00083,66376.0,66375.0,2.28596726]
[1722377980413,0.00083,66376.0,66375.0,2.29996726]
[1722377980799,0.00083,66376.0,66375.0,2.28596726]
[1722377981208,0.00083,66376.0,66375.0,2.29996726]
[1722377982645,0.00083,66376.0,66375.0,2.2999666]
[1722377982992,0.00083,66376.0,66375.0,2.17475622]
[1722377983236,0.00083,66376.0,66375.0,2.29996366]
[1722377984227,0.0635,66402.0,66400.0,0.301204]
[1722377984432,0.0635,66402.0,66401.0,0.4819204]
[1722377984894,0.0635,66402.0,66401.0,0.4518]
[1722377986485,0.0635,66402.0,66401.0,0.4598]
[1722377986901,0.0635,66402.0,66401.0,0.4718]
[1722377987877,0.0635,66402.0,66401.0,0.4638]
[1722377988339,0.0635,66402.0,66401.0,0.4718]
[1722377989181,0.0635,66402.0,66401.0,0.4598]
[1722377989310,0.0635,66402.0,66401.0,0.4718]
[1722377992154,0.0635,66402.0,66401.0,0.4598]
[1722377992596,0.0635,66402.0,66401.0,0.4648]
[1722377992960,0.0635,66402.0,66401.0,0.4738]
[1722377993595,0.0635,66402.0,66401.0,0.1726]
[1722377993766,0.0645,66402.0,66401.0,0.022]
[1722377993940,0.1464,66402.0,66401.0,0.03079983]
[1722377994164,0.1464,66402.0,66401.0,0.022]
[1722377994165,1.00048322,66402.0,66401.0,0.022]
[1722377994399,0.898387,66402.0,66401.0,0.022]
[1722377995088,0.90940434,66402.0,66401.0,0.022]
[1722377995324,0.898387,66402.0,66401.0,0.022]
[1722377995774,0.90940769,66402.0,66401.0,0.022]
[1722377997279,0.90965921,66402.0,66401.0,0.022]
[1722377997458,0.96309585,66402.0,66401.0,0.022]
[1722377998674,0.95182364,66402.0,66401.0,0.022]
[1722377998879,0.96294399,66402.0,66401.0,0.022]
[1722377999088,0.90950829,66402.0,66401.0,0.022]
[1722377999696,1.21070329,66402.0,66401.0,0.022]
[1722378001552,1.21004623,66402.0,66401.0,0.022]
[1722378004382,1.55818623,66402.0,66401.0,0.022]
[1722378004591,1.66818623,66402.0,66401.0,0.022]
[1722378004800,1.82888055,66402.0,66401.0,0.022]
[1722378005010,1.81888055,66402.0,66401.0,0.022]
[1722378005219,1.81888055,66402.0,66401.0,0.009]
[1722378005220,1.80888055,66402.0,66401.0,0.009]
[1722378005472,0.1439,66388.0,66381.0,0.00897953]
[1722378005693,0.09025995,66386.0,66382.0,0.150643]
[1722378005911,0.16284658,66385.0,66379.0,0.22599616]
[1722378006126,0.001,66382.0,66380.0,0.0091334]
[1722378006342,0.150655,66377.0,66374.0,0.03021]
[1722378006560,0.0649,66381.0,66374.0,0.03021]
[1722378006561,0.150659,66375.0,66374.0,0.03021]
[1722378007135,0.001,66375.0,66374.0,0.03021]
[1722378007342,0.001,66378.0,66375.0,0.150658]
[1722378007538,0.150655,66377.0,66372.0,0.150665]
[1722378007715,0.24191195,66378.0,66372.0,0.150665]
[1722378007924,0.150655,66377.0,66371.0,0.15158]
[1722378008136,0.001,66376.0,66371.0,0.000913]
[1722378008330,0.001,66376.0,66373.0,0.150661]
[1722378008529,0.001,66377.0,66373.0,0.150661]
[1722378008832,0.001,66377.0,66374.0,0.014]
[1722378009192,0.001,66377.0,66372.0,0.150665]
[1722378009393,0.09130143,66377.0,66373.0,0.008]
[1722378009597,0.150659,66375.0,66373.0,0.008]
[1722378009810,0.09130146,66376.0,66373.0,0.008]
[1722378010020,0.151659,66375.0,66373.0,0.011]
[1722378010232,0.151659,66375.0,66374.0,0.007]
[1722378010642,0.150659,66375.0,66374.0,0.007]
[1722378011881,0.15265703,66376.0,66374.0,0.007]
[1722378012092,0.001,66376.0,66372.0,0.150663]
[1722378012523,0.001,66377.0,66373.0,0.0725]
[1722378012944,0.001,66377.0,66374.0,0.013]
[1722378013154,0.001,66378.0,66376.0,0.150656]
[1722378013359,0.001,66378.0,66377.0,0.531163]
[1722378013540,0.001,66380.0,66378.0,0.150652]
[1722378013999,0.001,66380.0,66378.0,0.150651]
[1722378014917,0.001,66380.0,66378.0,0.15065]
[1722378015381,0.001,66381.0,66380.0,0.150647]
[1722378015778,0.001,66382.0,66380.0,0.150647]
[1722378016606,0.001,66382.0,66378.0,0.301303]
[1722378016815,0.001,66382.0,66379.0,0.150649]
[1722378017213,0.001,66382.0,66380.0,0.011]
[1722378017383,0.001,66382.0,66379.0,0.150649]
[1722378018254,0.001,66382.0,66378.0,0.011]
[1722378018434,0.001,66383.0,66381.0,0.0641]
[1722378018879,0.001,66386.0,66381.0,0.214744]
[1722378019490,0.001,66386.0,66382.0,0.150643]
[1722378019699,0.08137774,66386.0,66382.0,0.150643]
[1722378020692,0.08137774,66386.0,66382.0,0.150642]
[1722378021324,0.23201174,66386.0,66381.0,0.219745]
[1722378021525,0.23201174,66386.0,66382.0,0.008]
[1722378021727,0.03568997,66385.0,66382.0,0.008]
[1722378021926,0.001,66384.0,66382.0,0.013]
[1722378022311,0.001,66385.0,66382.0,0.008]
[1722378022533,0.001,66385.0,66382.0,0.158643]
[1722378022758,0.24081256,66387.0,66382.0,0.163643]
[1722378022759,0.001,66386.0,66382.0,0.163643]
[1722378023159,0.001,66386.0,66385.0,0.150636]
[1722378023540,0.001,66387.0,66383.0,0.440081]
[1722378023716,0.09118056,66387.0,66383.0,0.440079]
[1722378023921,0.001,66387.0,66385.0,0.150636]
[1722378024131,0.01045205,66386.0,66385.0,0.150636]
[1722378024757,0.01045205,66386.0,66384.0,0.150638]
[1722378024961,0.001,66385.0,66384.0,0.150638]
[1722378025159,0.001,66385.0,66384.0,0.451915]
[1722378025365,0.001,66386.0,66385.0,0.159636]
[1722378025585,0.01135345,66386.0,66385.0,0.159636]
[1722378025820,0.01135345,66386.0,66385.0,0.165636]
[1722378026041,0.01135356,66386.0,66385.0,0.165636]
[1722378026280,0.01135356,66386.0,66385.0,0.159636]
[1722378026747,0.01135356,66386.0,66385.0,0.156636]
[1722378027151,0.00395246,66386.0,66385.0,0.156636]
[1722378027305,0.09018162,66388.0,66385.0,0.156636]
[1722378027506,0.09018162,66388.0,66385.0,0.165636]
[1722378027710,0.09018162,66388.0,66385.0,0.156636]
[1722378028154,0.09018162,66388.0,66385.0,0.009]
[1722378028361,0.09018162,66388.0,66385.0,0.165636]
[1722378028539,0.09018162,66388.0,66385.0,0.172636]
[1722378028917,0.09019318,66388.0,66385.0,0.166636]
[1722378029124,0.09019318,66387.0,66385.0,0.02]
[1722378029505,0.09019318,66387.0,66385.0,0.016]
[1722378029947,0.09019318,66388.0,66385.0,0.02]
[1722378030163,0.09019318,66387.0,66385.0,0.02]
[1722378030608,0.227734,66386.0,66385.0,0.004]
[1722378030810,0.53000203,66386.0,66385.0,0.011]
[1722378031216,1.28593121,66386.0,66385.0,0.004]
[1722378031386,0.15450036,66386.0,66369.0,0.1384]
[1722378031601,0.511963,66377.0,66376.0,0.00903464]
[1722378031801,0.150658,66376.0,66370.0,0.15067]
[1722378032008,0.0793,66375.0,66367.0,0.000913]
[1722378032225,0.150665,66373.0,66371.0,0.00975685]
[1722378032435,0.301323,66374.0,66371.0,0.000913]
[1722378032436,0.150665,66372.0,66371.0,0.000913]
[1722378032647,0.46549746,66372.0,66371.0,0.000913]
[1722378032848,0.76682846,66372.0,66371.0,0.000913]
[1722378033485,0.76682846,66372.0,66371.0,0.012913]
[1722378034099,0.76682846,66372.0,66371.0,0.024913]
[1722378034319,0.46549746,66372.0,66371.0,0.012913]
[1722378034535,0.27694907,66372.0,66371.0,0.000913]
[1722378034744,0.2779491,66372.0,66371.0,0.013913]
[1722378034957,0.2779491,66372.0,66371.0,0.023913]
[1722378035158,0.17476134,66372.0,66371.0,0.023913]
[1722378035363,0.58887495,66372.0,66371.0,0.023913]
[1722378035535,0.58882849,66372.0,66371.0,0.023913]
[1722378035937,0.56626983,66372.0,66371.0,0.023913]
[1722378037175,0.58882849,66372.0,66371.0,0.023913]
[1722378038226,0.47605004,66372.0,66371.0,0.023913]
[1722378038428,0.58885175,66372.0,66371.0,0.023913]
[1722378038633,0.13585572,66372.0,66371.0,0.023913]
[1722378038855,0.02305401,66372.0,66371.0,0.023913]
[1722378039058,0.02295371,66372.0,66371.0,0.14377286]
[1722378039284,0.01350146,66372.0,66371.0,0.238081]
[1722378039685,0.09025614,66374.0,66371.0,0.238081]
[1722378039816,0.01343811,66372.0,66371.0,0.238081]
[1722378040017,0.09025614,66373.0,66372.0,0.451996]
[1722378040421,0.11282017,66374.0,66371.0,0.087413]
[1722378040649,0.0134381,66373.0,66372.0,0.451996]
[1722378040850,0.0134381,66373.0,66372.0,0.829627]
[1722378041050,0.0134381,66373.0,66372.0,1.130958]
[1722378041256,0.09026725,66379.0,66378.0,0.301304]
[1722378041466,0.09026725,66379.0,66378.0,0.529756]
[1722378041669,0.10378794,66379.0,66378.0,0.529756]
[1722378041911,0.10378794,66379.0,66371.0,0.021913]
[1722378041912,0.17086725,66379.0,66371.0,0.021913]
[1722378042068,0.150655,66377.0,66371.0,0.16458]
[1722378042287,0.09027576,66376.0,66372.0,0.159664]
[1722378042490,0.10379404,66376.0,66372.0,0.009]
[1722378042692,0.01351828,66376.0,66372.0,0.009]
[1722378043103,0.01351828,66376.0,66372.0,0.31033]
[1722378043311,0.01351828,66376.0,66375.0,0.150659]
[1722378043861,0.01349813,66376.0,66375.0,0.150659]
[1722378044068,0.09027576,66377.0,66373.0,0.301326]
[1722378044290,0.01349813,66376.0,66373.0,0.301326]
[1722378044490,0.01349813,66376.0,66375.0,0.150659]
[1722378044716,0.01349813,66376.0,66375.0,0.155659]
[1722378045105,0.01349813,66376.0,66375.0,0.150659]
[1722378045311,0.10377389,66376.0,66374.0,0.15066]
[1722378045522,0.09030704,66375.0,66374.0,0.15066]
[1722378045877,0.18667561,66375.0,66373.0,0.005]
[1722378046087,0.11388913,66374.0,66373.0,0.005]
[1722378046517,0.76778564,66374.0,66373.0,0.005]
[1722378046746,0.77718047,66374.0,66373.0,0.005]
[1722378047126,0.77718047,66374.0,66373.0,0.016]
[1722378047871,0.77718047,66374.0,66373.0,0.011]
[1722378048557,0.77718047,66374.0,66371.0,0.000913]
[1722378048558,0.17453647,66374.0,66371.0,0.000913]
[1722378048868,0.11292015,66373.0,66371.0,0.000913]
[1722378049100,0.00100003,66372.0,66371.0,0.000913]
[1722378049273,0.12740825,66372.0,66371.0,0.000913]
[1722378050054,0.0144881,66372.0,66371.0,0.000913]
[1722378050460,0.1651531,66372.0,66371.0,0.000913]
[1722378050665,0.1651531,66372.0,66371.0,0.008913]
[1722378051064,0.1651531,66372.0,66371.0,0.000913]
[1722378051266,0.0144881,66372.0,66371.0,0.000913]
[1722378051677,0.01448807,66372.0,66371.0,0.010913]
[1722378051904,0.01448807,66372.0,66371.0,0.022913]
[1722378052103,0.01448807,66372.0,66371.0,0.010913]
[1722378052454,0.01448807,66372.0,66371.0,0.023913]
[1722378052857,0.01448807,66372.0,66371.0,0.28336176]
[1722378053060,0.01448807,66372.0,66371.0,0.234681]
[1722378053391,0.01448807,66372.0,66371.0,0.536017]
[1722378053597,0.01448807,66372.0,66371.0,0.611717]
[1722378053808,0.10485426,66372.0,66371.0,0.611717]
[1722378054027,0.09136619,66372.0,66371.0,0.611717]
[1722378054228,0.001,66372.0,66371.0,0.611717]
[1722378054460,0.01446796,66372.0,66371.0,0.913053]
[1722378054666,0.001,66372.0,66371.0,1.214389]
[1722378054888,0.01444263,66372.0,66371.0,1.214389]
[1722378055090,0.001,66372.0,66371.0,1.214389]
[1722378057196,0.001,66372.0,66371.0,0.913053]
[1722378059109,0.001,66372.0,66371.0,1.214389]
[1722378059309,0.001,66372.0,66371.0,1.244599]
[1722378060183,0.001,66372.0,66371.0,1.231599]
[1722378060660,0.001,66372.0,66371.0,1.245599]
[1722378060852,0.09036023,66379.0,66378.0,0.82936]
[1722378061058,0.09036023,66380.0,66379.0,0.45195]
[1722378061234,0.214431,66387.0,66381.0,0.150643]
[1722378061434,0.00949998,66386.0,66381.0,0.150643]
[1722378061635,0.02300491,66386.0,66382.0,0.150643]
[1722378061836,0.16013698,66385.0,66379.0,0.301298]
[1722378062108,0.11293898,66381.0,66379.0,0.150648]
[1722378062307,0.11293898,66380.0,66379.0,0.15065]
[1722378062511,0.1264054,66380.0,66379.0,0.15065]
[1722378062872,0.1264054,66380.0,66379.0,0.45195]
[1722378063480,0.01346642,66380.0,66379.0,0.45195]
[1722378063690,0.01346642,66380.0,66379.0,0.75325]
[1722378064122,0.01346642,66380.0,66379.0,0.76525]
[1722378064461,0.01346642,66380.0,66379.0,0.77325]
[1722378064777,0.01346642,66380.0,66379.0,0.78525]
[1722378064987,0.01346642,66380.0,66379.0,0.75325]
[1722378065255,0.01346642,66380.0,66379.0,0.77525]
[1722378065578,0.01346642,66380.0,66379.0,0.76625]
[1722378065997,0.01339725,66380.0,66379.0,0.77525]
[1722378066445,0.01339725,66380.0,66379.0,0.47395]
[1722378066616,0.12633432,66380.0,66379.0,0.47395]
[1722378066816,0.12633997,66380.0,66379.0,0.47395]
[1722378067243,0.12633997,66380.0,66379.0,0.46495]
[1722378067440,0.12633997,66380.0,66379.0,0.45195]
[1722378067726,0.11294272,66380.0,66379.0,0.46095]
[1722378067949,0.11294708,66380.0,66379.0,0.47395]
[1722378068181,0.12640134,66380.0,66379.0,0.46495]
[1722378068390,0.12640134,66380.0,66379.0,0.47395]
[1722378068651,0.12640134,66380.0,66379.0,0.46095]
[1722378068901,0.12640134,66380.0,66379.0,0.46116034]
[1722378069111,0.12640134,66380.0,66379.0,0.47416034]
[1722378069343,0.12640134,66380.0,66379.0,0.48316034]
[1722378070051,0.12640134,66380.0,66379.0,0.18186034]
[1722378070344,0.61759287,66380.0,66379.0,0.022]
[1722378070603,1.2637804,66380.0,66379.0,0.022]
[1722378070880,1.41625895,66380.0,66379.0,0.022]
[1722378071114,1.62138957,66380.0,66379.0,0.022]
[1722378071363,1.62138957,66380.0,66379.0,0.013]
[1722378071364,1.64138957,66380.0,66379.0,0.013]
[1722378071601,2.04268457,66380.0,66379.0,0.013]
[1722378071831,1.054658,66372.0,66371.0,0.000913]
[1722378072076,1.55549978,66372.0,66371.0,0.000913]
[1722378072285,1.56932957,66372.0,66371.0,0.000913]
[1722378073135,1.57932957,66372.0,66371.0,0.000913]
[1722378073314,1.56932957,66372.0,66371.0,0.000913]
[1722378073489,1.72002389,66372.0,66371.0,0.000913]
[1722378074283,1.72002389,66372.0,66371.0,0.001913]
[1722378074284,1.67391311,66372.0,66371.0,0.001913]
[1722378074507,1.73228576,66372.0,66371.0,0.002913]
[1722378074725,1.67591311,66372.0,66371.0,0.001913]
[1722378074893,1.7502901,66372.0,66371.0,0.000913]
[1722378075300,1.7522901,66372.0,66371.0,0.002913]
[1722378075653,1.7522901,66372.0,66371.0,0.001913]
[1722378076299,1.58159578,66372.0,66371.0,0.001913]
[1722378076713,1.57159578,66372.0,66371.0,0.001913]
[1722378077087,1.57359578,66372.0,66371.0,0.002913]
[1722378077309,1.58359578,66372.0,66371.0,0.002913]
[1722378077524,1.67791311,66372.0,66371.0,0.002913]
[1722378077733,1.73071527,66372.0,66371.0,0.000913]
[1722378078141,1.74771527,66372.0,66371.0,0.002913]
[1722378078360,2.01739654,66372.0,66371.0,0.001913]
[1722378078566,2.3458366,66372.0,66371.0,0.001913]
[1722378078777,2.3508366,66372.0,66371.0,0.002913]
[1722378079187,2.36248163,66372.0,66371.0,0.001913]
[1722378079450,2.43782879,66372.0,66371.0,0.001913]
[1722378080921,2.43912943,66372.0,66371.0,0.001913]
[1722378081163,2.44612943,66372.0,66371.0,0.002913]
[1722378081589,2.65606786,66372.0,66371.0,0.000913]
[1722378081996,2.66506786,66372.0,66371.0,0.002913]
[1722378082164,2.44312943,66372.0,66371.0,0.002913]
[1722378082738,2.74446043,66372.0,66371.0,0.002913]
[1722378083155,2.66911327,66372.0,66371.0,0.102913]
[1722378083359,2.8910517,66372.0,66371.0,0.102913]
[1722378083756,2.66911327,66372.0,66371.0,0.102913]
[1722378084847,0.150677,66367.0,66366.0,2.8e-07]
[1722378085026,2.02037063,66367.0,66366.0,2.8e-07]
[1722378085266,2.02037063,66367.0,66360.0,0.000913]
[1722378085267,1.243702,66363.0,66360.0,0.000913]
[1722378085454,0.33,66351.0,66345.0,0.0015542]
[1722378085675,0.33,66351.0,66344.0,0.009328]
[1722378085676,1.63865257,66351.0,66344.0,0.009328]
[1722378085885,1.65228647,66351.0,66344.0,0.009328]
[1722378086150,1.78740655,66351.0,66344.0,0.009328]
[1722378086354,2.80729558,66351.0,66350.0,1e-06]
[1722378086570,2.94241566,66351.0,66350.0,1e-06]
[1722378086802,2.80729558,66351.0,66350.0,1e-06]
[1722378086987,2.94234937,66351.0,66350.0,1e-06]
[1722378087335,1.98200454,66351.0,66350.0,1e-06]
[1722378087557,1.98800454,66351.0,66350.0,1e-06]
[1722378087764,1.98800193,66351.0,66350.0,1e-06]
[1722378087965,1.98200193,66351.0,66350.0,1e-06]
[1722378088193,1.94700193,66351.0,66350.0,1e-06]
[1722378088365,1.80810043,66351.0,66350.0,1e-06]
[1722378088722,1.82810043,66351.0,66350.0,1e-06]
[1722378088927,3.10790043,66351.0,66350.0,1e-06]
[1722378089131,3.05490043,66351.0,66350.0,1e-06]
[1722378089564,3.06690043,66351.0,66350.0,1e-06]
[1722378090634,3.0558534,66351.0,66350.0,1e-06]
[1722378090841,3.06651947,66351.0,66350.0,1e-06]
[1722378093122,2.91580647,66351.0,66344.0,0.009209]
[1722378093337,1.055089,66345.0,66344.0,0.009209]
[1722378093545,1.155089,66345.0,66344.0,0.009209]
[1722378093783,1.16857728,66345.0,66344.0,0.009209]
[1722378094785,1.17357728,66345.0,66344.0,0.009209]
[1722378095031,1.2989774,66345.0,66344.0,0.009209]
[1722378095493,1.18057728,66345.0,66344.0,0.009209]
[1722378095744,0.47766928,66345.0,66344.0,0.009209]
[1722378096006,0.77912328,66345.0,66344.0,0.009209]
[1722378097437,0.78145128,66345.0,66344.0,0.009209]
[1722378097666,0.47999728,66345.0,66344.0,0.009209]
[1722378097882,0.8414934,66345.0,66344.0,0.009209]
[1722378098388,0.8374934,66345.0,66344.0,0.152409]
[1722378098604,0.8404934,66345.0,66344.0,0.152409]
[1722378099079,0.8354934,66345.0,66344.0,0.152409]
[1722378099334,0.78145128,66345.0,66344.0,0.152409]
[1722378099554,0.46866928,66345.0,66344.0,0.152409]
[1722378099793,0.46866928,66345.0,66344.0,0.153409]
[1722378100028,0.77012328,66345.0,66344.0,0.153409]
[1722378100972,0.46566928,66345.0,66344.0,0.153409]
[1722378101222,0.47801369,66345.0,66344.0,0.153409]
[1722378101963,0.02583269,66345.0,66344.0,0.153409]
[1722378102202,0.01448828,66345.0,66344.0,0.153409]
[1722378102438,0.001,66345.0,66344.0,0.605597]
[1722378102670,0.001,66345.0,66344.0,0.304138]
[1722378103123,0.00083,66351.0,66344.0,0.152409]
[1722378103335,0.150722,66347.0,66344.0,0.152409]
[1722378103540,0.001,66345.0,66344.0,0.152409]
[1722378103948,0.01348172,66345.0,66344.0,0.153409]
[1722378104153,0.01448172,66345.0,66344.0,0.153409]
[1722378104360,0.001,66345.0,66344.0,0.153409]
[1722378104562,0.01448172,66345.0,66344.0,0.153409]
[1722378104789,0.001,66345.0,66344.0,0.153409]
[1722378105004,0.01448635,66345.0,66344.0,0.153409]
[1722378105217,0.01448635,66345.0,66344.0,0.152409]
[1722378106289,0.01448635,66345.0,66344.0,0.154409]
[1722378106590,0.01448635,66345.0,66344.0,0.152409]
[1722378106806,0.84613009,66345.0,66344.0,0.011209]
[1722378107019,1.15864867,66345.0,66344.0,0.011209]
[1722378107230,1.14758409,66345.0,66344.0,0.011209]
[1722378107438,1.15815884,66345.0,66344.0,0.011209]
[1722378107646,1.15715884,66345.0,66344.0,0.011209]
[1722378107871,1.15815884,66345.0,66344.0,0.011209]
[1722378108286,1.0811501,66345.0,66344.0,0.011209]
[1722378108497,0.7796961,66345.0,66344.0,0.011169]
[1722378108705,0.4782421,66345.0,66344.0,0.154169]
[1722378108916,0.4782421,66345.0,66344.0,0.152169]
[1722378108917,0.4772421,66345.0,66344.0,0.152169]
[1722378109338,0.0240611,66345.0,66344.0,0.152169]
[1722378109547,0.01548635,66345.0,66344.0,0.152169]
[1722378109759,0.01548635,66345.0,66344.0,0.302898]
[1722378109760,0.01348635,66345.0,66344.0,0.302898]
[1722378109941,0.01348635,66345.0,66344.0,0.152169]
[1722378110191,0.003,66345.0,66344.0,0.153169]
[1722378110414,0.46867506,66345.0,66344.0,0.152169]
[1722378110620,0.46331991,66345.0,66344.0,0.152169]
[1722378110822,0.47782665,66345.0,66344.0,0.153169]
[1722378111001,0.47882665,66345.0,66344.0,0.152169]
[1722378111451,1.16076162,66345.0,66344.0,0.010169]
[1722378111655,1.08273465,66345.0,66344.0,0.010169]
[1722378111836,0.78128065,66345.0,66344.0,0.010169]
[1722378112306,0.47882665,66345.0,66344.0,0.010169]
[1722378112695,0.47682665,66345.0,66344.0,0.009169]
[1722378112991,0.47682665,66345.0,66344.0,0.090069]
[1722378112992,0.17537265,66345.0,66344.0,0.090069]
[1722378113158,0.02464565,66345.0,66344.0,0.149969]
[1722378113523,0.01350674,66345.0,66344.0,0.301698]
[1722378113722,0.01350674,66345.0,66344.0,0.602157]
[1722378113927,0.005,66345.0,66344.0,0.300698]
[1722378114144,0.006,66345.0,66344.0,0.301698]
[1722378114378,0.005,66345.0,66344.0,0.300698]
[1722378115033,0.005,66345.0,66344.0,0.149969]
[1722378115238,0.01350357,66345.0,66344.0,0.149969]
[1722378115487,0.150717,66350.0,66344.0,0.300696]
[1722378115657,0.01451343,66345.0,66344.0,0.300696]
[1722378115895,0.002,66345.0,66344.0,0.301696]
[1722378116064,0.01551343,66345.0,66344.0,0.301696]
[1722378116240,0.01551343,66345.0,66344.0,0.150969]
[1722378116441,0.01451343,66345.0,66344.0,0.150969]
[1722378116951,0.02542882,66345.0,66344.0,0.150969]
[1722378117153,0.01551346,66345.0,66344.0,0.150969]
[1722378117377,0.02648821,66345.0,66344.0,0.150969]
[1722378118166,0.17721521,66345.0,66344.0,0.150969]
[1722378118372,0.02648821,66345.0,66344.0,0.150969]
[1722378118728,0.02748821,66345.0,66344.0,0.150969]
[1722378119355,0.55777903,66345.0,66344.0,0.150969]
[1722378119533,0.17821521,66345.0,66344.0,0.150969]
[1722378120031,0.78112321,66345.0,66344.0,0.010169]
[1722378120239,1.33161976,66345.0,66344.0,0.010169]
[1722378120472,1.21877721,66345.0,66344.0,0.010169]
[1722378120681,1.36921754,66345.0,66344.0,0.010169]
[1722378121432,1.21752322,66345.0,66344.0,0.010169]
[1722378121808,1.08132322,66345.0,66344.0,0.010169]
[1722378122015,0.77986922,66345.0,66344.0,0.009169]
[1722378122214,0.77886922,66345.0,66344.0,0.009169]
[1722378122875,0.77886922,66345.0,66344.0,0.149369]
[1722378122876,0.17496119,66345.0,66344.0,0.149369]
[1722378123113,0.13720583,66345.0,66344.0,0.148369]
[1722378123317,0.47641519,66345.0,66344.0,0.148369]
[1722378123538,0.47641519,66345.0,66344.0,0.149369]
[1722378123750,0.47641519,66345.0,66344.0,0.148369]
[1722378123961,0.17496119,66345.0,66344.0,0.148369]
[1722378124172,0.56875784,66345.0,66344.0,0.010169]
[1722378124390,0.47741522,66345.0,66344.0,0.010169]
[1722378124594,0.02423419,66345.0,66344.0,0.010169]
[1722378124803,0.02423419,66345.0,66344.0,0.160898]
[1722378124987,0.13725791,66345.0,66344.0,0.160898]
[1722378125224,0.02423419,66345.0,66344.0,0.462357]
[1722378125470,0.02423419,66345.0,66344.0,0.009169]
[1722378125712,0.02423419,66345.0,66344.0,0.010169]
[1722378125713,0.13925836,66345.0,66344.0,0.010169]
[1722378125894,0.13925836,66345.0,66344.0,0.009169]
[1722378125895,0.17606557,66345.0,66344.0,0.009169]
[1722378126358,0.46869446,66345.0,66344.0,0.010169]
[1722378126566,0.61492888,66345.0,66344.0,0.010169]
[1722378126968,0.31347488,66345.0,66344.0,0.010169]
[1722378127085,0.17783889,66345.0,66344.0,0.010169]
[1722378127713,0.02711189,66345.0,66344.0,0.010169]
[1722378127915,0.02714087,66345.0,66344.0,0.010169]
[1722378128115,0.17786787,66345.0,66344.0,0.010169]
[1722378128331,0.02714087,66345.0,66344.0,0.010169]
[1722378128906,0.17786787,66345.0,66344.0,0.010169]
[1722378129315,0.02735572,66345.0,66344.0,0.010169]
[1722378129519,0.02635569,66345.0,66344.0,0.010169]
[1722378129925,0.02635569,66345.0,66344.0,0.160898]
[1722378130139,0.02635569,66345.0,66344.0,0.462357]
[1722378130490,0.01284226,66345.0,66344.0,0.462357]
[1722378131004,0.01284226,66345.0,66344.0,0.841016]
[1722378131211,0.002,66345.0,66344.0,1.205075]
[1722378131418,0.002,66345.0,66344.0,0.903616]
[1722378132093,0.1130145,66348.0,66345.0,0.301453]
[1722378132245,0.01449766,66345.0,66344.0,0.903616]
[1722378132450,0.002,66345.0,66344.0,0.903616]
[1722378132671,0.001,66345.0,66344.0,0.902616]
[1722378132858,0.002,66345.0,66344.0,0.903616]
[1722378133574,0.002,66345.0,66344.0,1.205075]
[1722378133758,0.001,66345.0,66344.0,1.204075]
[1722378133969,0.11300628,66349.0,66348.0,0.899]
[1722378134180,0.12451987,66349.0,66348.0,0.898]
[1722378134384,0.01151359,66349.0,66348.0,0.898]
[1722378134990,0.01151359,66349.0,66348.0,0.897]
[1722378135199,0.11300628,66350.0,66348.0,0.74728]
[1722378135403,0.11300628,66350.0,66349.0,0.452154]
[1722378135605,0.00083,66351.0,66350.0,0.150715]
[1722378135821,0.09124153,66351.0,66350.0,0.450146]
[1722378136022,0.00083,66351.0,66350.0,0.896277]
[1722378137206,0.00083,66351.0,66350.0,0.895277]
[1722378137365,0.00083,66351.0,66350.0,0.592846]
[1722378137570,0.00083,66351.0,66350.0,0.894277]
[1722378138173,0.00167,66351.0,66350.0,0.894277]
[1722378138423,0.00167,66351.0,66344.0,0.084569]
[1722378138628,0.09038498,66350.0,66349.0,0.150717]
[1722378138996,0.00267,66351.0,66349.0,0.150717]
[1722378139232,0.00267,66351.0,66344.0,0.084569]
[1722378139233,0.11665312,66351.0,66346.0,0.150723]
[1722378139467,0.09038795,66349.0,66345.0,0.301454]
[1722378139688,0.09038795,66349.0,66348.0,0.15072]
[1722378141226,0.001,66349.0,66348.0,0.15072]
[1722378141404,0.09139878,66349.0,66348.0,0.15072]
[1722378142017,0.09239878,66349.0,66348.0,0.16272]
[1722378142257,0.002,66349.0,66348.0,0.16272]
[1722378142474,0.09240005,66349.0,66348.0,0.16272]
[1722378142695,0.09239816,66349.0,66348.0,0.16272]
[1722378143336,0.002,66349.0,66348.0,0.16272]
[1722378145546,0.01560021,66349.0,66348.0,0.16272]
[1722378146384,0.01560021,66349.0,66348.0,0.012]
[1722378146592,0.01560021,66349.0,66348.0,0.16272]
[1722378147208,0.12860728,66349.0,66348.0,0.16272]
[1722378149176,0.12861207,66349.0,66348.0,0.16272]
[1722378152798,0.12861207,66349.0,66348.0,0.012]
[1722378153274,0.13987661,66349.0,66348.0,0.012]
[1722378154146,0.02686475,66349.0,66348.0,0.012]